bitfinex/quotes_SOLUSD_20241110
["timestamp","ask_amount","ask_price","bid_price","bid_amount"]
[1731206457715,13.23073803,202.14,202.07,13.23073803]
[1731206457915,11.50935818,202.16,202.09,13.23073803]
[1731206458139,24.74009621,202.16,202.09,13.23073803]
[1731206458643,11.50935818,202.16,202.11,13.23073803]
[1731206459339,11.50935818,202.16,202.12,13.23073803]
[1731206459545,6.3521,202.16,202.12,13.23073803]
[1731206460044,6.3521,202.16,202.11,13.23073803]
[1731206460420,6.3521,202.16,202.12,13.23073803]
[1731206461234,6.3521,202.16,202.13,13.23073803]
[1731206461437,19.58283803,202.21,202.13,13.23073803]
[1731206461941,19.774805,202.2,202.13,13.23073803]
[1731206462523,13.23073803,202.19,202.12,13.23073803]
[1731206463529,6.3521,202.21,202.15,13.23073803]
[1731206463930,19.58283803,202.21,202.14,13.23073803]
[1731206464330,6.3521,202.21,202.15,13.23073803]
[1731206464935,6.3521,202.21,202.14,13.23073803]
[1731206465137,5.15568609,202.24,202.17,13.23073803]
[1731206465347,5.15568609,202.24,202.17,8.44503726]
[1731206465348,18.38642409,202.24,202.17,8.44503726]
[1731206465546,26.83146135,202.24,202.17,8.44503726]
[1731206466048,13.230738,202.24,202.16,8.44503726]
[1731206466343,22.9516,202.29,202.11,15.5636]
[1731206466344,8.44503726,202.23,202.15,8.44503726]
[1731206466542,8.44503726,202.21,202.14,0.1]
[1731206466937,14.79713726,202.2,202.1,2.69400535]
[1731206467138,22.9516,202.17,202.1,8.44503726]
[1731206467325,13.21463071,202.11,202.02,13.31463071]
[1731206467659,6.3521,202.12,202.02,13.31463071]
[1731206467660,13.21463071,202.1,202.02,13.31463071]
[1731206468020,13.21463071,202.1,202.03,13.21463071]
[1731206468248,6.3521,202.12,202.03,8.21463071]
[1731206468543,13.21463071,202.11,202.04,13.21463071]
[1731206469047,13.21463071,202.1,202.03,13.21463071]
[1731206469249,6.3521,202.12,202.03,13.21463071]
[1731206469250,13.21463071,202.11,202.03,13.21463071]
[1731206469447,13.21463071,202.11,202.04,13.21463071]
[1731206469852,13.21463071,202.1,202.03,13.21463071]
[1731206470680,13.21463071,202.09,202.01,13.21463071]
[1731206470821,6.3521,202.12,202.05,13.21463071]
[1731206470822,19.56673071,202.12,202.05,13.21463071]
[1731206471027,6.3521,202.12,202.06,13.21463071]
[1731206471336,13.21463071,202.1,202.03,13.21463071]
[1731206471635,13.21463071,202.09,202.02,13.21463071]
[1731206471836,13.21463071,202.09,202.03,0.1]
[1731206472036,13.21463071,202.09,202.02,13.21463071]
[1731206472544,13.21463071,202.08,202.01,13.31463071]
[1731206472744,13.21463071,202.08,202.01,0.1]
[1731206472935,13.21463071,202.08,202.01,13.21463071]
[1731206473134,13.21463071,202.09,202.02,13.21463071]
[1731206473334,13.21463071,202.09,202.03,0.1]
[1731206473549,13.21463071,202.1,202.03,13.31463071]
[1731206473855,13.21463071,202.1,202.03,0.1]
[1731206474026,6.3521,202.12,202.06,13.21463071]
[1731206474347,6.3521,202.12,202.07,13.31463071]
[1731206474651,13.21463071,202.11,202.04,13.21463071]
[1731206474827,13.21463071,202.1,202.03,13.31463071]
[1731206475030,13.21463071,202.11,202.04,13.21463071]
[1731206475230,13.21463071,202.1,202.03,13.31463071]
[1731206475651,13.21463071,202.1,202.03,13.21463071]
[1731206475838,13.21463071,202.09,202.02,13.21463071]
[1731206476226,13.21463071,202.11,202.04,0.1]
[1731206476444,6.3521,202.12,202.07,13.31463071]
[1731206476640,49.4915392,202.17,202.1,13.21463071]
[1731206476938,13.21463071,202.16,202.09,13.31463071]
[1731206477346,44.34006771,202.17,202.1,13.21463071]
[1731206477929,31.125437,202.17,202.11,13.21463071]
[1731206478135,22.6804,202.17,202.13,13.31463071]
[1731206478434,6.0809,202.17,202.13,13.31463071]
[1731206479942,6.0809,202.17,202.13,0.1]
[1731206480533,13.21463071,202.16,202.09,0.1]
[1731206480740,13.21463071,202.16,202.11,0.1]
[1731206480933,19.29553071,202.17,202.11,0.1]
[1731206481129,6.0809,202.17,202.11,0.1]
[1731206481330,6.0809,202.17,202.12,13.21463071]
[1731206481637,6.0809,202.17,202.13,0.1]
[1731206481835,6.0809,202.17,202.11,13.31463071]
[1731206482054,13.21463071,202.18,202.13,0.1]
[1731206482351,13.314631,202.2,202.14,13.21463071]
[1731206482941,13.314631,202.2,202.13,13.31463071]
[1731206482942,13.21463071,202.2,202.13,13.31463071]
[1731206483142,28.60053071,202.2,202.13,13.31463071]
[1731206483346,13.21463071,202.19,202.12,13.21463071]
[1731206483658,28.60053071,202.2,202.13,13.21463071]
[1731206483952,28.60053071,202.2,202.05,90.0]
[1731206483953,15.3859,202.2,202.15,13.21463071]
[1731206484338,28.60053071,202.22,202.15,13.21463071]
[1731206484644,13.214631,202.21,202.15,13.21463071]
[1731206484838,26.42926171,202.21,202.14,13.31463071]
[1731206485234,26.42926171,202.21,202.14,0.1]
[1731206486063,26.42926171,202.21,202.13,13.21463071]
[1731206486759,26.42926171,202.21,202.14,0.1]
[1731206487265,13.21463071,202.2,202.13,13.21463071]
[1731206487559,13.21463071,202.17,202.1,13.21463071]
[1731206487857,13.21463071,202.15,202.08,13.21463071]
[1731206488155,13.44012071,202.2,202.05,13.21463071]
[1731206488156,13.21463071,202.12,202.05,13.21463071]
[1731206488361,13.21463071,202.11,202.02,2.68745543]
[1731206488557,13.21463071,202.1,202.03,13.21463071]
[1731206488934,13.21463071,202.09,202.02,13.21463071]
[1731206489135,13.21463071,202.08,202.01,13.21463071]
[1731206489357,13.21463071,202.09,202.03,13.21463071]
[1731206489836,6.3776,202.2,202.08,13.21463071]
[1731206490055,6.3776,202.2,202.14,13.21463071]
[1731206490939,19.59223071,202.2,202.13,13.21463071]
[1731206491360,13.21463071,202.19,202.12,13.21463071]
[1731206491559,13.21463071,202.16,202.09,13.21463071]
[1731206491862,13.21463071,202.18,202.11,13.21463071]
[1731206492849,13.21463071,202.18,202.05,20.0]
[1731206493058,13.21463071,202.17,202.1,13.21463071]
[1731206493362,13.21463071,202.16,202.1,13.21463071]
[1731206494463,13.21463071,202.19,202.12,13.21463071]
[1731206494764,19.59223071,202.2,202.13,13.21463071]
[1731206494950,13.21463071,202.18,202.11,13.21463071]
[1731206495870,6.3776,202.2,202.09,13.21463071]
[1731206495871,13.21463071,202.17,202.09,13.21463071]
[1731206496043,13.21463071,202.18,202.11,13.21463071]
[1731206496550,13.21463071,202.19,202.12,13.21463071]
[1731206496750,6.3776,202.2,202.14,13.21463071]
[1731206499255,6.3776,202.2,202.08,4.958]
[1731206499256,6.3776,202.2,202.15,13.21463071]
[1731206499744,19.87003071,202.25,202.18,13.21463071]
[1731206499951,19.770112,202.23,202.18,13.21463071]
[1731206500351,19.87003071,202.25,202.19,13.21463071]
[1731206500557,13.214631,202.24,202.19,13.21463071]
[1731206500748,13.214631,202.24,202.23,13.21463071]
[1731206500944,6.6554,202.3,202.23,13.21463071]
[1731206501146,6.6554,202.3,202.26,13.21463071]
[1731206501347,6.6554,202.3,202.25,13.21463071]
[1731206503268,6.6554,202.3,202.24,13.21463071]
[1731206503459,6.6554,202.3,202.25,13.21463071]
[1731206504160,15.6884,202.31,202.26,13.21463071]
[1731206505947,15.6884,202.31,202.29,13.21463071]
[1731206506152,13.1884,202.31,202.3,13.21463071]
[1731206506564,6.6554,202.34,202.3,13.21463071]
[1731206506865,19.758662,202.33,202.29,13.21463071]
[1731206507068,32.97329271,202.33,202.21,20.0]
[1731206507256,19.758662,202.33,202.31,13.21463071]
[1731206507462,6.6554,202.39,202.23,20.0]
[1731206507656,6.6554,202.39,202.22,23.776884]
[1731206507657,6.6554,202.39,202.3,13.21463071]
[1731206507854,6.6554,202.39,202.22,23.776884]
[1731206507855,13.21463071,202.35,202.29,13.21463071]
[1731206508051,13.21463071,202.34,202.27,13.21463071]
[1731206508271,13.21463071,202.32,202.26,13.21463071]
[1731206508475,13.21463071,202.32,202.2,13.21463071]
[1731206508476,13.21463071,202.32,202.25,13.21463071]
[1731206509062,13.21463071,202.31,202.24,13.21463071]
[1731206509263,13.21463071,202.31,202.25,13.21463071]
[1731206509459,26.42926071,202.31,202.25,13.21463071]
[1731206510677,13.21463,202.31,202.25,13.21463071]
[1731206511771,26.42926071,202.31,202.25,13.21463071]
[1731206512448,6.6554,202.39,202.29,13.21463071]
[1731206512652,13.21463071,202.35,202.29,13.21463071]
[1731206513058,6.6554,202.39,202.27,13.21463071]
[1731206513059,13.21463071,202.34,202.27,13.21463071]
[1731206513281,13.21463071,202.33,202.27,13.21463071]
[1731206513666,13.21463071,202.33,202.26,13.21463071]
[1731206514372,6.6554,202.39,202.3,13.21463071]
[1731206514570,13.21463071,202.37,202.3,13.21463071]
[1731206515082,13.21463071,202.35,202.28,13.21463071]
[1731206517068,13.21463071,202.34,202.27,13.21463071]
[1731206517467,6.6554,202.39,202.3,13.21463071]
[1731206517773,13.21463071,202.36,202.29,13.21463071]
[1731206518486,5.14938427,202.41,202.35,13.21463071]
[1731206518667,0.1,202.67,202.48,0.1]
[1731206518857,15.6884,202.58,202.52,20.0]
[1731206519058,15.6884,202.58,202.57,13.21463071]
[1731206519373,2.66367559,202.73,202.57,13.21463071]
[1731206519374,0.1,202.71,202.57,13.21463071]
[1731206519678,0.1,202.72,202.6,13.21463071]
[1731206519875,13.21463071,202.71,202.62,13.21463071]
[1731206520177,13.21463071,202.73,202.64,13.21463071]
[1731206520565,6.2118,202.75,202.66,13.21463071]
[1731206520566,6.1118,202.71,202.66,13.21463071]
[1731206520771,6.1118,202.71,202.69,13.21463071]
[1731206521084,6.1118,202.71,202.69,12.71463071]
[1731206521383,6.1118,202.71,202.69,21.00724058]
[1731206521965,6.1118,202.71,202.67,21.00724058]
[1731206522367,6.1118,202.71,202.69,21.00724058]
[1731206523879,6.1118,202.71,202.61,37.9278274]
[1731206523880,6.1118,202.71,202.61,23.776884]
[1731206524184,6.1118,202.71,202.68,21.00724058]
[1731206524388,6.1118,202.71,202.7,21.00724058]
[1731206525591,6.1118,202.71,202.68,21.00724058]
[1731206527583,6.1118,202.71,202.67,21.00724058]
[1731206527967,6.1118,202.71,202.66,21.00724058]
[1731206528172,6.1118,202.71,202.67,21.00724058]
[1731206528478,21.00724058,202.83,202.7,21.00724058]
[1731206528676,21.00724058,202.74,202.64,20.0]
[1731206528877,0.1,202.81,202.66,21.00724058]
[1731206529102,21.00724058,202.75,202.67,21.00724058]
[1731206529387,21.00724058,202.75,202.68,21.00724058]
[1731206529765,21.00724058,202.76,202.68,21.00724058]
[1731206530164,0.1,202.81,202.67,21.00724058]
[1731206530165,21.00724058,202.74,202.67,21.00724058]
[1731206530366,21.00724058,202.75,202.67,21.00724058]
[1731206531389,21.00724058,202.8,202.6,91.00724058]
[1731206531390,21.00724058,202.72,202.64,21.00724058]
[1731206531582,21.00724058,202.66,202.59,5.8320518]
[1731206531893,6.3358,202.74,202.55,70.0]
[1731206532078,6.3358,202.74,202.56,0.1]
[1731206532079,6.2358,202.74,202.56,0.1]
[1731206532282,21.00724058,202.71,202.64,21.00724058]
[1731206532583,6.2358,202.74,202.67,21.00724058]
[1731206532584,21.00724058,202.74,202.67,21.00724058]
[1731206532784,6.3358,202.83,202.6,120.75724058]
[1731206532785,21.00724058,202.76,202.69,21.00724058]
[1731206532994,21.00724058,202.77,202.7,21.00724058]
[1731206533174,21.00724058,202.78,202.71,21.00724058]
[1731206533579,21.00724058,202.77,202.7,21.00724058]
[1731206533781,21.00724058,202.76,202.69,21.00724058]
[1731206534291,21.00724058,202.76,202.68,21.00724058]
[1731206534872,21.00724058,202.75,202.64,20.0]
[1731206535080,21.00724058,202.74,202.67,21.00724058]
[1731206535376,21.00724058,202.75,202.68,21.00724058]
[1731206535774,21.00724058,202.76,202.68,21.00724058]
[1731206536483,21.00724058,202.76,202.69,21.00724058]
[1731206537277,21.00724058,202.76,202.68,21.00724058]
[1731206537582,19.715751,202.77,202.71,21.00724058]
[1731206539475,19.715751,202.77,202.7,21.00724058]
[1731206539676,19.715751,202.77,202.67,20.1]
[1731206539873,19.715751,202.77,202.7,21.00724058]
[1731206540376,21.00724058,202.76,202.69,21.00724058]
[1731206541077,40.72299158,202.77,202.7,21.00724058]
[1731206541296,21.00724058,202.76,202.69,21.00724058]
[1731206541998,40.72299158,202.77,202.69,21.00724058]
[1731206542176,19.715751,202.77,202.71,21.00724058]
[1731206542373,19.715751,202.77,202.72,21.00724058]
[1731206542578,21.00724058,202.81,202.73,21.00724058]
[1731206543380,19.711585,202.8,202.74,13.12322212]
[1731206544896,19.711585,202.8,202.75,13.12322212]
[1731206545695,19.711585,202.8,202.76,13.12322212]
[1731206546206,19.711585,202.8,202.74,13.12322212]
[1731206546399,19.711585,202.8,202.75,13.12322212]
[1731206547005,19.711585,202.8,202.76,13.12322212]
[1731206547497,19.711585,202.8,202.75,13.12322212]
[1731206547990,19.711585,202.8,202.76,13.12322212]
[1731206549101,19.711585,202.8,202.72,4.958]
[1731206549306,19.711585,202.8,202.75,13.12322212]
[1731206550001,19.711585,202.8,202.73,13.12322212]
[1731206550002,32.83480712,202.8,202.73,13.12322212]
[1731206550801,32.83480712,202.8,202.74,13.12322212]
[1731206551301,32.83480712,202.8,202.73,13.12322212]
[1731206551698,13.12322212,202.79,202.72,13.12322212]
[1731206552403,13.12322212,202.79,202.73,4.958]
[1731206552602,32.83480712,202.8,202.73,18.08122212]
[1731206553995,19.711585,202.8,202.75,12.62322212]
[1731206554392,20.0,202.86,202.79,31.20444424]
[1731206554598,20.0,202.86,202.84,13.12322212]
[1731206555005,20.0,202.86,202.83,13.12322212]
[1731206555213,20.0,202.86,202.76,13.50600659]
[1731206555387,20.0,202.86,202.83,13.12322212]
[1731206556324,20.0,202.86,202.84,13.12322212]
[1731206557217,20.0,202.86,202.74,0.1]
[1731206557540,20.0,202.86,202.85,13.12322212]
[1731206558444,20.0,202.86,202.78,5.70508514]
[1731206558638,20.0,202.86,202.84,13.12322212]
[1731206559125,20.0,202.86,202.85,13.12322212]
[1731206559722,20.0,202.86,202.79,6.78809034]
[1731206559931,20.0,202.86,202.84,13.12322212]
[1731206560231,20.0,202.86,202.85,13.12322212]
[1731206560432,20.0,202.86,202.83,13.12322212]
[1731206560621,20.0,202.86,202.81,13.12322212]
[1731206561218,20.0,202.86,202.79,13.12322212]
[1731206561524,13.12322212,202.85,202.77,18.08122212]
[1731206562120,13.12322212,202.85,202.77,13.12322212]
[1731206562611,20.0,202.86,202.73,70.1]
[1731206562805,20.0,202.86,202.81,13.12322212]
[1731206563813,20.0,202.86,202.82,13.12322212]
[1731206564398,20.0,202.86,202.75,5.058]
[1731206564399,20.0,202.86,202.83,13.12322212]
[1731206564818,20.0,202.86,202.84,13.12322212]
[1731206565121,20.0,202.86,202.83,13.12322212]
[1731206565326,20.0,202.86,202.82,13.12322212]
[1731206568423,20.0,202.86,202.83,13.12322212]
[1731206568620,20.0,202.86,202.84,13.12322212]
[1731206568808,20.0,202.86,202.83,13.12322212]
[1731206569009,20.0,202.86,202.82,13.12322212]
[1731206569519,20.0,202.86,202.85,13.12322212]
[1731206569720,20.0,202.86,202.84,13.12322212]
[1731206569916,20.0,202.86,202.83,13.12322212]
[1731206570120,20.0,202.86,202.82,13.12322212]
[1731206571214,20.0,202.86,202.85,13.12322212]
[1731206572328,20.0,202.86,202.82,18.08122212]
[1731206572905,20.0,202.86,202.81,13.12322212]
[1731206575110,20.0,202.86,202.8,13.12322212]
[1731206575506,20.0,202.86,202.82,13.12322212]
[1731206575916,20.0,202.86,202.81,13.12322212]
[1731206577121,20.0,202.86,202.82,13.12322212]
[1731206577526,20.0,202.86,202.83,13.12322212]
[1731206578035,26.2338,202.86,202.79,13.12322212]
[1731206579315,26.2338,202.86,202.81,13.12322212]
[1731206579633,20.0,202.86,202.85,13.12322212]
[1731206579931,20.0,202.86,202.82,13.12322212]
[1731206580935,20.0,202.86,202.81,4.958]
[1731206581721,20.0,202.86,202.8,13.12322212]
[1731206581908,13.12322212,202.85,202.78,13.12322212]
[1731206582119,13.12322212,202.85,202.76,13.12322212]
[1731206582631,13.12322212,202.85,202.78,13.12322212]
[1731206582836,20.0,202.86,202.78,13.12322212]
[1731206583919,13.12322212,202.85,202.76,13.12322212]
[1731206584438,6.2338,202.84,202.76,13.12322212]
[1731206585019,13.12322212,202.83,202.76,13.12322212]
[1731206585212,13.12322212,202.83,202.7,16.0775077]
[1731206585213,13.12322212,202.82,202.75,18.08122212]
[1731206585421,13.12322212,202.78,202.72,13.12322212]
[1731206585616,13.12322212,202.77,202.7,13.12322212]
[1731206585817,13.12322212,202.79,202.72,13.12322212]
[1731206586033,13.12322212,202.81,202.74,13.12322212]
[1731206586315,13.12322212,202.79,202.73,4.958]
[1731206586515,13.12322212,202.79,202.72,13.12322212]
[1731206587011,13.12322212,202.78,202.7,13.12322212]
[1731206587222,13.12322212,202.78,202.71,13.12322212]
[1731206587420,13.12322212,202.78,202.7,4.958]
[1731206587919,13.12322212,202.76,202.69,13.12322212]
[1731206588323,13.12322212,202.75,202.68,18.08122212]
[1731206588518,13.12322212,202.75,202.69,4.958]
[1731206588720,13.12322212,202.74,202.69,4.958]
[1731206588925,13.12322212,202.73,202.69,4.958]
[1731206589231,13.12322212,202.74,202.69,4.458]
[1731206589419,13.12322212,202.74,202.68,3.958]
[1731206589937,13.12322212,202.74,202.68,3.458]
[1731206590629,13.12322212,202.74,202.66,13.12322212]
[1731206590833,13.12322212,202.72,202.66,4.958]
[1731206591018,13.12322212,202.75,202.68,13.12322212]
[1731206591217,13.12322212,202.74,202.67,13.12322212]
[1731206591434,13.12322212,202.75,202.67,13.12322212]
[1731206591818,13.12322212,202.74,202.67,13.12322212]
[1731206592017,13.12322212,202.73,202.66,18.08122212]
[1731206592219,13.12322212,202.74,202.66,18.08122212]
[1731206592521,6.2338,202.79,202.66,18.08122212]
[1731206592522,13.12322212,202.73,202.66,18.08122212]
[1731206592725,13.12322212,202.74,202.66,18.08122212]
[1731206592949,13.12322212,202.75,202.67,13.12322212]
[1731206593318,13.12322212,202.74,202.66,18.08122212]
[1731206593719,13.12322212,202.76,202.69,18.08122212]
[1731206593919,13.12322212,202.78,202.69,18.08122212]
[1731206594125,19.35702212,202.79,202.71,13.12322212]
[1731206594529,13.12322212,202.78,202.71,13.12322212]
[1731206595120,13.12322212,202.78,202.7,13.12322212]
[1731206595321,13.12322212,202.76,202.69,18.08122212]
[1731206596023,13.12322212,202.76,202.69,13.12322212]
[1731206596854,13.12322212,202.75,202.68,13.12322212]
[1731206597439,13.12322212,202.75,202.67,13.12322212]
[1731206598344,13.12322212,202.75,202.68,13.12322212]
[1731206599720,13.12322212,202.75,202.67,13.12322212]
[1731206600047,13.12322212,202.74,202.67,13.12322212]
[1731206600347,13.12322212,202.75,202.67,13.12322212]
[1731206600640,6.2338,202.79,202.62,4.958]
[1731206600641,13.12322212,202.78,202.71,13.12322212]
[1731206600835,19.35702212,202.79,202.71,13.12322212]
[1731206601239,13.12322212,202.78,202.69,13.12322212]
[1731206601738,21.76362388,202.82,202.75,13.12322212]
[1731206601928,16.6217,202.82,202.77,13.12322212]
[1731206602327,6.1382,202.9,202.77,13.12322212]
[1731206602531,13.123222,202.83,202.81,13.12322212]
[1731206602728,5.13971314,202.88,202.81,13.12322212]
[1731206603132,18.26293514,202.88,202.83,13.12322212]
[1731206603326,18.26293514,202.88,202.85,13.12322212]
[1731206603525,5.13971314,202.88,202.85,13.12322212]
[1731206604620,5.13971314,202.88,202.85,6.89383237]
[1731206604828,5.13971314,202.88,202.85,88.08122212]
[1731206605234,5.13971314,202.88,202.85,13.12322212]
[1731206605541,13.12322212,202.98,202.85,13.12322212]
[1731206605765,13.12322212,202.98,202.85,18.08122212]
[1731206606334,24.83433331,202.99,202.84,4.958]
[1731206606640,13.12322212,202.97,202.85,18.08122212]
[1731206608017,24.83433331,202.99,202.85,13.12322212]
[1731206608236,24.83433331,202.99,202.81,13.12322212]
[1731206608237,13.12322212,202.88,202.81,13.12322212]
[1731206608434,33.12322212,202.86,202.78,19.24210282]
[1731206608635,33.12322212,202.86,202.78,13.12322212]
[1731206609437,13.12322212,202.84,202.76,13.12322212]
[1731206609637,13.12322212,202.82,202.7,7.51675935]
[1731206609851,13.12322212,202.82,202.74,13.12322212]
[1731206610230,20.0,202.86,202.81,13.12322212]
[1731206610546,20.0,202.86,202.85,13.12322212]
[1731206610941,20.0,202.86,202.82,13.12322212]
[1731206611136,20.0,202.86,202.84,13.12322212]
[1731206611630,20.0,202.86,202.82,13.12322212]
[1731206612840,20.0,202.86,202.84,13.12322212]
[1731206613941,20.0,202.86,202.83,13.12322212]
[1731206614446,20.0,202.86,202.84,13.12322212]
[1731206616042,20.0,202.86,202.85,13.12322212]
[1731206622151,19.0,202.86,202.85,13.12322212]
[1731206627251,19.0,202.86,202.85,18.04322212]
[1731206629440,19.0,202.86,202.85,13.30727746]
[1731206629633,19.0,202.86,202.8,110.20395287]
[1731206629843,19.0,202.86,202.81,5.41120639]
[1731206630044,19.0,202.86,202.84,8.38727746]
[1731206630354,19.0,202.86,202.84,13.30727746]
[1731206631340,19.0,202.86,202.85,13.10755975]
[1731206632954,19.0,202.86,202.83,13.10755975]
[1731206633559,19.0,202.86,202.85,13.10755975]
[1731206635050,19.0,202.86,202.85,18.02755975]
[1731206635951,19.0,202.86,202.85,13.10755975]
[1731206643293,19.0,202.86,202.78,20.0]
[1731206643557,19.0,202.86,202.82,13.10755975]
[1731206643762,19.0,202.86,202.71,6.30225414]
[1731206643763,13.10755975,202.84,202.65,16.3847]
[1731206643940,13.10755975,202.78,202.61,3.14636313]
[1731206644139,13.10755975,202.76,202.69,13.10755975]
[1731206644362,13.10755975,202.77,202.7,13.10755975]
[1731206645341,13.10755975,202.77,202.62,20.0]
[1731206645556,13.10755975,202.78,202.7,13.10755975]
[1731206645757,13.10755975,202.78,202.62,20.0]
[1731206645953,13.10755975,202.77,202.7,13.10755975]
[1731206646556,13.10755975,202.78,202.71,13.10755975]
[1731206647440,13.10755975,202.78,202.65,70.0]
[1731206647667,23.0066,202.79,202.76,13.10755975]
[1731206647844,23.0066,202.79,202.78,13.10755975]
[1731206648360,23.0066,202.79,202.66,6.59836525]
[1731206648547,23.0066,202.79,202.78,13.10755975]
[1731206649969,23.0066,202.79,202.76,13.10755975]
[1731206650865,23.0066,202.79,202.75,13.10755975]
[1731206651056,23.0066,202.79,202.74,13.10755975]
[1731206651253,23.0066,202.79,202.73,13.10755975]
[1731206651463,23.0066,202.79,202.75,13.10755975]
[1731206651846,23.0066,202.79,202.73,13.10755975]
[1731206652051,23.0066,202.79,202.74,13.10755975]
[1731206652567,0.1,202.84,202.69,4.92]
[1731206652568,6.5198,202.84,202.78,13.10755975]
[1731206652755,6.5198,202.84,202.8,13.10755975]
[1731206653572,6.5198,202.84,202.79,13.10755975]
[1731206654276,6.5198,202.84,202.82,13.10755975]
[1731206654464,6.5198,202.84,202.8,13.10755975]
[1731206654650,6.5198,202.84,202.77,13.10755975]
[1731206654851,13.10755975,202.8,202.72,13.10755975]
[1731206655057,34.71345975,202.79,202.71,13.10755975]
[1731206655375,13.10755975,202.77,202.7,13.10755975]
[1731206655572,34.71345975,202.79,202.71,13.10755975]
[1731206656082,21.6059,202.79,202.73,13.10755975]
[1731206656255,13.10755975,202.78,202.71,13.10755975]
[1731206657372,6.2539,202.77,202.71,13.10755975]
[1731206657572,15.352,202.76,202.67,13.10755975]
[1731206657869,15.352,202.76,202.69,13.10755975]
[1731206659080,15.352,202.76,202.73,13.10755975]
[1731206659758,15.352,202.76,202.62,74.92]
[1731206659759,15.352,202.76,202.71,13.10755975]
[1731206661055,28.45955975,202.76,202.61,20.0]
[1731206661262,28.45955975,202.76,202.68,13.10755975]
[1731206662573,21.6059,202.84,202.75,13.10755975]
[1731206662771,21.6059,202.84,202.7,13.10755975]
[1731206662772,6.2539,202.83,202.67,6.44721815]
[1731206662973,13.10755975,202.82,202.72,13.10755975]
[1731206663180,6.2539,202.83,202.76,13.10755975]
[1731206663359,6.2539,202.83,202.78,13.10755975]
[1731206663861,6.2539,202.83,202.76,13.10755975]
[1731206664472,13.10755975,202.8,202.71,13.10755975]
[1731206664974,13.10755975,202.82,202.75,13.10755975]
[1731206665174,6.2539,202.83,202.75,13.10755975]
[1731206666080,13.10755975,202.82,202.75,13.10755975]
[1731206667576,6.2539,202.83,202.81,13.10755975]
[1731206667965,6.2539,202.83,202.79,13.10755975]
[1731206669273,6.2539,202.83,202.7,35.425275]
[1731206669274,6.2539,202.83,202.77,13.10755975]
[1731206671080,6.2539,202.83,202.78,13.10755975]
[1731206671273,24.14014562,202.86,202.82,13.10755975]
[1731206671579,19.0,202.86,202.85,13.10755975]
[1731206671880,19.0,202.86,202.84,13.10755975]
[1731206672260,19.0,202.86,202.78,15.5549]
[1731206672485,19.0,202.86,202.79,20.0]
[1731206672776,19.0,202.86,202.85,13.10755975]
[1731206673156,19.0,202.86,202.84,13.10755975]
[1731206674478,19.0,202.86,202.79,20.0]
[1731206674677,19.0,202.86,202.84,13.10755975]
[1731206674862,19.0,202.86,202.82,13.10755975]
[1731206675061,19.0,202.86,202.84,13.10755975]
[1731206676166,19.0,202.86,202.85,13.10755975]
[1731206677266,19.0,202.86,202.85,18.02755975]
[1731206678381,19.0,202.86,202.84,13.10755975]
[1731206678567,19.0,202.86,202.83,13.10755975]
[1731206678967,19.0,202.86,202.79,20.0]
[1731206678968,19.0,202.86,202.84,13.10755975]
[1731206680677,19.0,202.86,202.85,13.10755975]
[1731206680881,19.0,202.86,202.82,13.10755975]
[1731206681071,19.0,202.86,202.81,13.10755975]
[1731206681474,19.0,202.86,202.8,18.02755975]
[1731206681785,19.0,202.86,202.7,83.30755975]
[1731206681786,6.6,202.83,202.76,13.10755975]
[1731206681964,19.70755975,202.83,202.76,13.10755975]
[1731206682484,19.0,202.86,202.79,13.10755975]
[1731206682689,19.0,202.86,202.84,13.10755975]
[1731206685467,19.0,202.86,202.85,13.10755975]
[1731206686569,19.0,202.86,202.8,20.0]
[1731206686771,19.0,202.86,202.84,13.10755975]
[1731206687166,19.0,202.86,202.85,4.92]
[1731206687586,19.0,202.86,202.85,18.02755975]
[1731206687788,19.0,202.86,202.83,13.10755975]
[1731206688673,19.0,202.86,202.84,4.92]
[1731206688879,19.0,202.86,202.85,13.10755975]
[1731206692188,19.0,202.86,202.79,20.0]
[1731206692394,19.0,202.86,202.82,20.0]
[1731206692791,19.0,202.86,202.85,13.10755975]
[1731206693199,19.0,202.86,202.85,18.02755975]
[1731206694474,19.0,202.86,202.85,33.10755975]
[1731206694676,19.0,202.86,202.82,33.10755975]
[1731206694993,19.0,202.86,202.82,20.0]
[1731206695497,19.0,202.86,202.79,20.1]
[1731206695697,19.0,202.86,202.83,20.0]